[Event "URU-ch Women 2021"]
[Site "Montevideo"]
[Date "2021.03.05"]
[Round "3.2"]
[White "Silvera, Pilar"]
[Black "Silva Rosas, Natalia"]
[Result "0-1"]
[ECO "B41"]
[WhiteElo "1410"]
[BlackElo "1771"]
[Annotator "NA RC"]
[PlyCount "54"]
[EventDate "2021.03.04"]
[EventType "tourn"]
[EventCountry "URU"]
[SourceTitle "playchess.com"]
[Source "ChessBase"]
[SourceQuality "1"]
[TimeControl "3600+30"]

1. e4 {[%emt 0:00:00]} c5 {[%emt 0:00:00]} 2. Nf3 {[%emt 0:00:13]} e6 {[%emt 0:00:01]} 3. d4 {[%emt 0:00:24]} cxd4 {[%emt 0:00:03]} 4. Nxd4 {[%emt 0:00:09]} a6 {[%emt 0:00:04]} 5. a3 {[%emt 0:00:24]} Nf6 {[%emt 0:00:48]} 6. Nc3 {[%emt 0:00:08]} Qc7 {[%emt 0:02:51]} 7. Be3 {[%emt 0:00:51]} Nc6 {[%emt 0:01:23]} 8. g4 {[%emt 0:00:18]} h5 {[%emt 0:02:31]} 9. gxh5 {[%emt 0:02:26]} Rxh5 {[%emt 0:00:24]} 10. Qf3 {[%emt 0:02:19]} Ne5 {[%emt 0:00:53]} 11. Qg3 {[%emt 0:00:44]} b5 {[%emt 0:06:57]} 12. Bg2 {[%emt 0:06:04]} b4 {[%emt 0:01:18]} 13. axb4 {[%emt 0:00:08]} Bxb4 {[%emt 0:00:58]} 14. Bd2 {[%emt 0:00:09]} Bb7 {[%emt 0:03:30]} 15. f3 {[%emt 0:11:21]} d6 {[%emt 0:04:12]} 16. Na2 {[%emt 0:03:13]} Bxd2+ {[%emt 0:00:39]} 17. Kxd2 {[%emt 0:00:09]} Nc4+ {[%emt 0:00:38]} 18. Kc1 {[%emt 0:00:10]} Qb6 {[%emt 0:02:18]} 19. Nb3 {[%emt 0:00:53]} Qe3+ {[%emt 0:03:10]} 20. Kb1 {[%emt 0:00:09]} Rg5 {[%emt 0:00:43]} 21. Qh3 {[%emt 0:02:12]} Nh5 {[%emt 0:01:43]} 22. Qh4 {[%emt 0:04:23]} Rb5 {[%emt 0:01:59]} 23. Qe1 {[%emt 0:03:08]} Na3+ {[%emt 0:02:57]} 24. bxa3 {[%emt 0:00:23]} Rxb3+ {[%emt 0:00:08]} 25. cxb3 {[%emt 0:00:37]} Qxb3+ {[%emt 0:00:13]} 26. Kc1 {[%emt 0:00:05]} Rc8+ {[%emt 0:00:07]} 27. Kd2 {[%emt 0:00:20]} Rc2+ {[%emt 0:00:14]} 0-1

[Event "URU-ch Women 2021"]
[Site "Montevideo"]
[Date "2021.03.05"]
[Round "3.3"]
[White "Roepke, Sofia"]
[Black "Larrea, Daniela"]
[Result "1/2-1/2"]
[ECO "C41"]
[WhiteElo "1589"]
[BlackElo "1705"]
[Annotator "NA RC"]
[PlyCount "70"]
[EventDate "2021.03.04"]
[EventType "tourn"]
[EventCountry "URU"]
[SourceTitle "playchess.com"]
[Source "ChessBase"]
[SourceQuality "1"]
[TimeControl "3600+30"]

1. e4 {[%emt 0:00:04]} d6 {[%emt 0:00:30]} 2. d4 {[%emt 0:00:05]} e5 {[%emt 0:00:03]} 3. Nf3 {[%emt 0:00:02]} Nd7 {[%emt 0:00:14]} 4. Bc4 {[%emt 0:00:12]} c6 {[%emt 0:02:06]} 5. a4 {[%emt 0:00:06]} Be7 {[%emt 0:08:07]} 6. Nc3 {[%emt 0:00:51]} Ngf6 {[%emt 0:00:55]} 7. O-O {[%emt 0:00:22]} O-O {[%emt 0:00:09]} 8. Re1 {[%emt 0:05:06]} b6 {[%emt 0:00:58]} 9. h3 {[%emt 0:00:28]} Bb7 {[%emt 0:00:15]} 10. b3 {[%emt 0:03:52]} Qc7 {[%emt 0:06:51]} 11. Bb2 {[%emt 0:11:30]} a6 {[%emt 0:00:47]} 12. Bd3 {[%emt 0:03:04]} Rfe8 {[%emt 0:09:47]} 13. Ne2 {[%emt 0:02:14]} Bf8 {[%emt 0:02:31]} 14. Ng3 {[%emt 0:00:51]} g6 {[%emt 0:01:35]} 15. c4 {[%emt 0:09:56]} Bg7 {[%emt 0:01:59]} 16. d5 {[%emt 0:02:46]} c5 {[%emt 0:02:36]} 17. Nh2 {[%emt 0:04:51]} Bh6 {[%emt 0:05:55]} 18. Bc1 {[%emt 0:02:06]} Bxc1 {[%emt 0:00:15]} 19. Qxc1 {[%emt 0:00:16]} Kg7 {[%emt 0:00:09]} 20. Qg5 {[%emt 0:00:23]} Kh8 {[%emt 0:03:55]} 21. Ng4 {[%emt 0:04:12]} Nxg4 {[%emt 0:02:50]} 22. hxg4 {[%emt 0:01:21]} Qd8 {[%emt 0:00:13]} 23. Qh6 {[%emt 0:00:28]} Qf6 {[%emt 0:00:17]} 24. f3 {[%emt 0:01:02]} Qf4 {[%emt 0:03:17]} 25. Qh3 {[%emt 0:02:19]} Nf6 {[%emt 0:02:04]} 26. Nf1 {[%emt 0:03:19]} Kg7 {[%emt 0:03:42]} 27. Ne3 {[%emt 0:02:24]} Bc8 {[%emt 0:03:54]} 28. Qh2 {[%emt 0:01:10]} Qxh2+ {[%emt 0:00:10]} 29. Kxh2 {[%emt 0:00:02]} h5 {[%emt 0:01:36]} 30. gxh5 {[%emt 0:02:25]} Nxh5 {[%emt 0:00:05]} 31. a5 {[%emt 0:00:27]} Rh8 {[%emt 0:00:30]} 32. Kg1 {[%emt 0:00:08]} Nf4 {[%emt 0:00:59]} 33. Bf1 {[%emt 0:00:11]} Rb8 {[%emt 0:00:42]} 34. axb6 {[%emt 0:01:21]} Rxb6 {[%emt 0:00:03]} 35. Ra3 {[%emt 0:00:18]} Bd7 {[%emt 0:01:12]} 1/2-1/2

[Event "URU-ch Women 2021"]
[Site "Montevideo"]
[Date "2021.03.06"]
[Round "4.1"]
[White "Silva Rosas, Natalia"]
[Black "Roepke, Sofia"]
[Result "1-0"]
[ECO "C42"]
[WhiteElo "1796"]
[BlackElo "1589"]
[Annotator "NA RC"]
[PlyCount "89"]
[EventDate "2021.03.04"]
[EventType "tourn"]
[EventCountry "URU"]
[SourceTitle "playchess.com"]
[Source "ChessBase"]
[SourceQuality "1"]
[TimeControl "3600+30"]

1. e4 {[%emt 0:00:28]} e5 {[%emt 0:00:05]} 2. Nf3 {[%emt 0:00:10]} Nf6 {[%emt 0:00:18]} 3. d3 {[%emt 0:03:55]} d6 {[%emt 0:00:53]} 4. h3 {[%emt 0:00:49]} h6 {[%emt 0:00:28]} 5. c3 {[%emt 0:00:35]} Nc6 {[%emt 0:00:50]} 6. Na3 {[%emt 0:00:58]} Be6 {[%emt 0:07:28]} 7. Nc2 {[%emt 0:00:38]} d5 {[%emt 0:01:34]} 8. Qe2 {[%emt 0:01:19]} dxe4 {[%emt 0:00:46]} 9. dxe4 {[%emt 0:00:04]} Bc5 {[%emt 0:01:26]} 10. Be3 {[%emt 0:01:04]} Bxe3 {[%emt 0:04:06]} 11. Qxe3 {[%emt 0:00:04]} a6 {[%emt 0:01:29]} 12. Rd1 {[%emt 0:01:15]} Qe7 {[%emt 0:00:35]} 13. Nh4 {[%emt 0:00:44]} g6 {[%emt 0:09:47]} 14. b3 {[%emt 0:00:58]} Nd7 {[%emt 0:01:29]} 15. g3 {[%emt 0:04:33]} Qg5 {[%emt 0:05:50]} 16. Qe2 {[%emt 0:03:01]} f5 {[%emt 0:00:54]} 17. exf5 {[%emt 0:01:10]} gxf5 {[%emt 0:00:38]} 18. Bg2 {[%emt 0:04:26]} e4 {[%emt 0:02:55]} 19. Nd4 {[%emt 0:00:56]} Nxd4 {[%emt 0:00:09]} 20. cxd4 {[%emt 0:00:08]} O-O-O {[%emt 0:02:19]} 21. O-O {[%emt 0:00:47]} Bd5 {[%emt 0:01:38]} 22. Rc1 {[%emt 0:01:23]} Nb6 {[%emt 0:01:17]} 23. Qc2 {[%emt 0:01:13]} Bc6 {[%emt 0:00:21]} 24. Qc5 {[%emt 0:01:12]} Rd5 {[%emt 0:00:45]} 25. Qc3 {[%emt 0:00:21]} Rhd8 {[%emt 0:02:54]} 26. Rfd1 {[%emt 0:01:03]} Qf6 {[%emt 0:03:22]} 27. Bf1 {[%emt 0:02:02]} Rxd4 {[%emt 0:00:54]} 28. Rxd4 {[%emt 0:00:23]} Rxd4 {[%emt 0:00:16]} 29. Nxf5 {[%emt 0:00:23]} Qxf5 {[%emt 0:03:02]} 30. Qxd4 {[%emt 0:00:38]} Kb8 {[%emt 0:00:42]} 31. Qh8+ {[%emt 0:02:09]} Ka7 {[%emt 0:00:03]} 32. Qxh6 {[%emt 0:00:35]} Qa5 {[%emt 0:03:24]} 33. a4 {[%emt 0:00:52]} Qd5 {[%emt 0:00:42]} 34. Qe3 {[%emt 0:00:14]} Qa5 {[%emt 0:01:06]} 35. Rc5 {[%emt 0:01:01]} Qb4 {[%emt 0:00:36]} 36. a5 {[%emt 0:00:08]} Nd5 {[%emt 0:00:55]} 37. Rxd5+ {[%emt 0:00:26]} b6 {[%emt 0:00:13]} 38. axb6+ {[%emt 0:00:18]} cxb6 {[%emt 0:00:02]} 39. Rd4 {[%emt 0:00:29]} Qf8 {[%emt 0:02:09]} 40. Bg2 {[%emt 0:01:33]} Qa3 {[%emt 0:01:29]} 41. Bxe4 {[%emt 0:00:39]} Bb5 {[%emt 0:00:16]} 42. Rd1 {[%emt 0:00:29]} a5 {[%emt 0:01:14]} 43. Bg2 {[%emt 0:00:10]} Qb4 {[%emt 0:00:36]} 44. Qf3 {[%emt 0:00:11]} Qe7 {[%emt 0:00:33]} 45. Qa8# {[%emt 0:00:10]} 1-0

[Event "URU-ch Women 2021"]
[Site "Montevideo"]
[Date "2021.03.06"]
[Round "4.1"]
[White "Sosa, Ines"]
[Black "Silvera, Pilar"]
[Result "0-1"]
[ECO "B21"]
[WhiteElo "1167"]
[BlackElo "1410"]
[Annotator "NA RC"]
[PlyCount "135"]
[EventDate "2021.03.04"]
[EventType "tourn"]
[EventCountry "URU"]
[SourceTitle "playchess.com"]
[Source "ChessBase"]
[SourceQuality "1"]
[TimeControl "3600+30"]

1. e4 {[%emt 0:00:00]} c5 {[%emt 0:00:00]} 2. d4 {[%emt 0:00:00]} cxd4 {[%emt 0:00:00]} 3. c3 {[%emt 0:00:00]} dxc3 {[%emt 0:00:03]} 4. Nxc3 {[%emt 0:00:00]} e6 {[%emt 0:00:09]} 5. Bc4 {[%emt 0:00:12]} a6 {[%emt 0:00:15]} 6. Nf3 {[%emt 0:00:25]} b5 {[%emt 0:00:17]} 7. Bb3 {[%emt 0:02:13]} Bb7 {[%emt 0:00:16]} 8. O-O {[%emt 0:01:41]} Ne7 {[%emt 0:00:13]} 9. Qe2 {[%emt 0:01:56]} Ng6 {[%emt 0:00:27]} 10. Rd1 {[%emt 0:04:31]} Be7 {[%emt 0:01:14]} 11. Bc2 {[%emt 0:03:37]} Qc7 {[%emt 0:02:27]} 12. Bg5 {[%emt 0:09:50]} Bxg5 {[%emt 0:14:34]} 13. Nxg5 {[%emt 0:01:20]} h6 {[%emt 0:00:33]} 14. Nxf7 {[%emt 0:06:14]} Kxf7 {[%emt 0:00:17]} 15. Qh5 {[%emt 0:00:38]} Qe5 {[%emt 0:00:56]} 16. Qf3+ {[%emt 0:08:03]} Qf4 {[%emt 0:03:55]} 17. Qh5 {[%emt 0:04:26]} Qe5 {[%emt 0:02:44]} 18. Qf3+ {[%emt 0:03:01]} Ke7 {[%emt 0:00:11]} 19. Nd5+ {[%emt 0:01:24]} Ke8 {[%emt 0:28:08]} 20. Qg4 {[%emt 0:06:10]} exd5 {[%emt 0:05:58]} 21. Qxg6+ {[%emt 0:02:23]} Kd8 {[%emt 0:00:03]} 22. Qb6+ {[%emt 0:01:47]} Qc7 {[%emt 0:00:31]} 23. Qxc7+ {[%emt 0:00:43]} Kxc7 {[%emt 0:00:07]} 24. exd5 {[%emt 0:00:19]} Kd6 {[%emt 0:00:53]} 25. Be4 {[%emt 0:01:27]} Rd8 {[%emt 0:00:25]} 26. Rac1 {[%emt 0:01:20]} a5 {[%emt 0:01:13]} 27. f4 {[%emt 0:01:57]} Na6 {[%emt 0:00:27]} 28. Kf2 {[%emt 0:00:47]} Nc7 {[%emt 0:00:23]} 29. Kf3 {[%emt 0:01:56]} Re8 {[%emt 0:01:38]} 30. f5 {[%emt 0:01:56]} Nxd5 {[%emt 0:02:55]} 31. g4 {[%emt 0:02:20]} Re5 {[%emt 0:01:15]} 32. h4 {[%emt 0:01:22]} Ke7 {[%emt 0:00:46]} 33. Rc5 {[%emt 0:01:08]} Rxe4 {[%emt 0:00:16]} 34. Kxe4 {[%emt 0:01:16]} Nc3+ {[%emt 0:00:06]} 35. Ke5 {[%emt 0:00:22]} Nxd1 {[%emt 0:00:27]} 36. Rxb5 {[%emt 0:00:10]} Bc6 {[%emt 0:00:46]} 37. Rb3 {[%emt 0:00:49]} a4 {[%emt 0:00:21]} 38. Rb4 {[%emt 0:00:30]} Ra5+ {[%emt 0:00:47]} 39. Kf4 {[%emt 0:00:42]} Rb5 {[%emt 0:02:00]} 40. Rxa4 {[%emt 0:00:28]} Rxb2 {[%emt 0:00:09]} 41. Rd4 {[%emt 0:00:20]} Nc3 {[%emt 0:00:24]} 42. Ke3 {[%emt 0:00:37]} Rxa2 {[%emt 0:00:56]} 43. g5 {[%emt 0:00:22]} Nd5+ {[%emt 0:00:35]} 44. Kd3 {[%emt 0:00:42]} Ra4 {[%emt 0:00:51]} 45. Rxa4 {[%emt 0:00:21]} Bxa4 {[%emt 0:00:06]} 46. Ke4 {[%emt 0:00:11]} hxg5 {[%emt 0:01:21]} 47. hxg5 {[%emt 0:00:07]} Bc6 {[%emt 0:00:14]} 48. Ke5 {[%emt 0:01:09]} d6+ {[%emt 0:00:39]} 49. Kd4 {[%emt 0:00:13]} Nf4 {[%emt 0:00:23]} 50. f6+ {[%emt 0:00:43]} gxf6 {[%emt 0:00:18]} 51. gxf6+ {[%emt 0:00:18]} Kxf6 {[%emt 0:00:14]} 52. Ke3 {[%emt 0:00:27]} Ke5 {[%emt 0:00:11]} 53. Kd2 {[%emt 0:00:26]} Bf3 {[%emt 0:00:18]} 54. Ke3 {[%emt 0:00:25]} Bh5 {[%emt 0:00:11]} 55. Kd2 {[%emt 0:00:22]} Ke4 {[%emt 0:00:12]} 56. Ke1 {[%emt 0:00:25]} Ng2+ {[%emt 0:00:28]} 57. Kd2 {[%emt 0:00:51]} d5 58. Kc1 {[%emt 0:00:36]} Ke3 {[%emt 0:00:18]} 59. Kc2 {[%emt 0:00:41]} d4 {[%emt 0:00:07]} 60. Kc1 {[%emt 0:00:14]} d3 {[%emt 0:00:16]} 61. Kb2 {[%emt 0:00:22]} d2 {[%emt 0:00:33]} 62. Kc3 {[%emt 0:00:27]} d1=Q {[%emt 0:00:14]} 63. Kc4 {[%emt 0:00:08]} Qd4+ {[%emt 0:00:09]} 64. Kb5 {[%emt 0:00:20]} Qc3 {[%emt 0:00:09]} 65. Kb6 {[%emt 0:00:26]} Kd4 {[%emt 0:00:07]} 66. Kb7 {[%emt 0:00:33]} Bf3+ {[%emt 0:00:38]} 67. Kb8 {[%emt 0:00:14]} Qc6 {[%emt 0:00:32]} 68. Ka7 0-1

[Event "URU-ch Women 2021"]
[Site "Montevideo"]
[Date "2021.03.06"]
[Round "4.2"]
[White "Fabra, Nahiara"]
[Black "Quevedo, Andreina"]
[Result "0-1"]
[ECO "D70"]
[WhiteElo "1419"]
[BlackElo "1867"]
[Annotator "NA RC"]
[PlyCount "50"]
[EventDate "2021.03.04"]
[EventType "tourn"]
[EventCountry "URU"]
[SourceTitle "playchess.com"]
[Source "ChessBase"]
[SourceQuality "1"]
[TimeControl "3600+30"]

{[%evp 12,49,36,33,28,0,12,-28,0,0,2,9,11,0,0,0,32,0,0,0,0,-28,-19,-74,-76,-74,-86,-174,-150,-112,-123,-147,-111,-209,-198,-297,-376,-1954,-2312,-29999]} 1. d4 {[%emt 0:00:00]} Nf6 {[%emt 0:00:00]} 2. c4 {[%emt 0:00:00]} g6 {[%emt 0:00:00]} 3. Nf3 {[%emt 0:00:19]} Bg7 {[%emt 0:00:00]} 4. g3 {[%emt 0:00:13]} O-O {[%emt 0:00:06]} 5. Bg2 {[%emt 0:00:22]} d6 {[%emt 0:00:27]} 6. O-O {[%emt 0:00:46]} Nbd7 {[%emt 0:01:13]} 7. Qc2 {[%emt 0:04:34]} e5 {[%emt 0:06:33]} 8. e3 {[%emt 0:02:17]} c6 {[%emt 0:02:55]} 9. dxe5 {[%emt 0:05:27]} Nxe5 {[%emt 0:03:25]} 10. Nxe5 {[%emt 0:01:44]} dxe5 {[%emt 0:00:05]} 11. b3 {[%emt 0:03:14]} Qc7 {[%emt 0:00:51]} 12. Bb2 {[%emt 0:08:59]} Be6 {[%emt 0:01:53]} 13. Nd2 {[%emt 0:02:34]} h6 {[%emt 0:05:01]} 14. h3 {[%emt 0:13:56]} a5 {[%emt 0:01:23]} 15. a4 {[%emt 0:05:46]} Nd7 {[%emt 0:03:51]} 16. Kh1 {[%emt 0:04:46]} f5 {[%emt 0:02:39]} 17. f4 {[%emt 0:02:38]} e4 {[%emt 0:03:40]} 18. Bxg7 {[%emt 0:02:41]} Kxg7 {[%emt 0:00:03]} 19. g4 {[%emt 0:01:00] [#]} (19. Qc3+ $17 {might work better.} Kg8 20. c5) 19... Nc5 $1 {[%emt 0:01:34]} 20. gxf5 {[%emt 0:02:12]} gxf5 {[%emt 0:00:06]} 21. Rg1 {[%emt 0:01:41]} Kf7 {[%emt 0:00:12]} 22. Bf1 {[%emt 0:00:55]} (22. Qd1 $17) 22... Qe7 {[%emt 0:03:35]} 23. Qc3 {[%emt 0:01:38]} (23. Qd1 $142 Qf6 24. Qe1) 23... Rg8 {[%emt 0:02:32]} 24. Be2 $2 {[%emt 0:00:25]} (24. Re1 Rxg1+ 25. Kxg1) 24... Qh4 {[%emt 0:01:18]} 25. Qe5 {[%emt 0:01:47]} Qxh3# {[%emt 0:00:16]} 0-1

[Event "URU-ch Women 2021"]
[Site "Montevideo"]
[Date "2021.03.06"]
[Round "5.1"]
[White "Silvera, Pilar"]
[Black "Fabra, Nahiara"]
[Result "1-0"]
[ECO "B56"]
[WhiteElo "1410"]
[BlackElo "1419"]
[Annotator "NA RC"]
[PlyCount "59"]
[EventDate "2021.03.04"]
[EventType "tourn"]
[EventCountry "URU"]
[SourceTitle "playchess.com"]
[Source "ChessBase"]
[SourceQuality "1"]
[TimeControl "3600+30"]

1. e4 {[%emt 0:06:40]} c5 {[%emt 0:00:00]} 2. Nf3 {[%emt 0:00:07]} d6 {[%emt 0:00:13]} 3. d4 {[%emt 0:00:07]} cxd4 {[%emt 0:00:12]} 4. Nxd4 {[%emt 0:00:08]} Nf6 {[%emt 0:00:08]} 5. Nc3 {[%emt 0:00:07]} e5 {[%emt 0:00:07]} 6. Nb3 {[%emt 0:00:13]} a6 {[%emt 0:00:24]} 7. Be2 {[%emt 0:00:08]} Be7 {[%emt 0:00:18]} 8. Be3 {[%emt 0:00:09]} Be6 {[%emt 0:00:30]} 9. f4 {[%emt 0:00:09]} Qc7 {[%emt 0:01:13]} 10. f5 {[%emt 0:00:16]} Bc4 {[%emt 0:00:37]} 11. g4 {[%emt 0:02:33]} h6 {[%emt 0:03:11]} 12. Qd2 {[%emt 0:00:37]} Nbd7 {[%emt 0:02:25]} 13. O-O-O {[%emt 0:00:20]} O-O-O {[%emt 0:01:36]} 14. Kb1 {[%emt 0:01:42]} Kb8 {[%emt 0:00:40]} 15. Nc1 {[%emt 0:00:46]} Bxe2 {[%emt 0:02:14]} 16. Qxe2 {[%emt 0:00:07]} Nc5 {[%emt 0:03:03]} 17. Bf2 {[%emt 0:00:19]} Qc6 {[%emt 0:17:24]} 18. Rhe1 {[%emt 0:02:43]} g6 {[%emt 0:03:46]} 19. Nd3 {[%emt 0:01:48]} g5 {[%emt 0:10:08]} 20. Nb4 {[%emt 0:01:08]} Qe8 {[%emt 0:04:20]} 21. Nbd5 {[%emt 0:00:50]} Nxd5 {[%emt 0:00:30]} 22. Nxd5 {[%emt 0:00:08]} f6 {[%emt 0:00:53]} 23. Qe3 {[%emt 0:00:31]} h5 {[%emt 0:07:38]} 24. h3 {[%emt 0:06:18]} hxg4 {[%emt 0:05:14]} 25. hxg4 {[%emt 0:00:03]} Rh2 {[%emt 0:04:12]} 26. Ka1 {[%emt 0:00:04]} Nd7 {[%emt 0:01:29]} 27. Qa7+ {[%emt 0:00:19]} Kc8 {[%emt 0:00:03]} 28. Qa8+ {[%emt 0:01:23]} Nb8 {[%emt 0:00:05]} 29. Ba7 {[%emt 0:00:09]} Kd7 {[%emt 0:00:18]} 30. Qxb7# {[%emt 0:00:11]} 1-0

[Event "URU-ch Women 2021"]
[Site "Montevideo"]
[Date "2021.03.06"]
[Round "5.2"]
[White "Larrea, Daniela"]
[Black "Silva Rosas, Natalia"]
[Result "0-1"]
[ECO "A46"]
[WhiteElo "1705"]
[BlackElo "1771"]
[Annotator "NA RC"]
[PlyCount "76"]
[EventDate "2021.03.04"]
[EventType "tourn"]
[EventCountry "URU"]
[SourceTitle "playchess.com"]
[Source "ChessBase"]
[SourceQuality "1"]
[TimeControl "3600+30"]

1. d4 {[%emt 0:02:34]} Nf6 {[%emt 0:00:00]} 2. Nf3 {[%emt 0:00:05]} d5 {[%emt 0:00:35]} 3. c4 {[%emt 0:00:22]} c5 {[%emt 0:04:16]} 4. cxd5 {[%emt 0:01:34]} cxd4 {[%emt 0:02:48]} 5. Qxd4 {[%emt 0:01:50]} Qxd5 {[%emt 0:02:22]} 6. Qxd5 {[%emt 0:03:03]} Nxd5 {[%emt 0:00:01]} 7. Bd2 {[%emt 0:00:09]} Bf5 {[%emt 0:03:21]} 8. Nc3 {[%emt 0:00:27]} Nb4 {[%emt 0:01:48]} 9. Rc1 {[%emt 0:02:06]} Nc2+ {[%emt 0:01:24]} 10. Kd1 {[%emt 0:00:14]} Nb4 {[%emt 0:01:15]} 11. Nb5 {[%emt 0:06:22]} Nd5 {[%emt 0:01:00]} 12. Nfd4 {[%emt 0:04:33]} Bd7 {[%emt 0:06:01]} 13. e4 {[%emt 0:03:38]} a6 {[%emt 0:00:22]} 14. exd5 {[%emt 0:05:09]} axb5 {[%emt 0:00:08]} 15. Bxb5 {[%emt 0:00:13]} Na6 {[%emt 0:00:52]} 16. Ke2 {[%emt 0:06:49]} g6 {[%emt 0:01:54]} 17. Bxd7+ {[%emt 0:01:20]} Kxd7 {[%emt 0:00:01]} 18. Nb5 {[%emt 0:00:23]} Bg7 {[%emt 0:01:15]} 19. Bc3 {[%emt 0:00:29]} f6 {[%emt 0:00:39]} 20. Rhd1 {[%emt 0:03:08]} Rac8 {[%emt 0:01:52]} 21. Nd4 {[%emt 0:07:11]} Nc5 {[%emt 0:04:00]} 22. Bb4 {[%emt 0:02:18]} Ne4 {[%emt 0:02:20]} 23. f3 {[%emt 0:01:42]} Nd6 {[%emt 0:01:58]} 24. b3 {[%emt 0:01:04]} h5 {[%emt 0:00:56]} 25. a4 {[%emt 0:01:28]} h4 {[%emt 0:00:32]} 26. h3 {[%emt 0:02:09]} Rh5 {[%emt 0:00:59]} 27. Rxc8 {[%emt 0:01:11]} Re5+ {[%emt 0:01:00]} 28. Kf1 {[%emt 0:03:55]} Nxc8 {[%emt 0:03:52]} 29. Ne6 {[%emt 0:00:36]} Bh6 {[%emt 0:01:47]} 30. f4 {[%emt 0:00:26]} Bxf4 {[%emt 0:03:44]} 31. Nf8+ {[%emt 0:00:50]} Ke8 {[%emt 0:01:24]} 32. Nxg6 {[%emt 0:00:15]} Re4 {[%emt 0:01:12]} 33. Bc5 {[%emt 0:00:37]} Bg3 {[%emt 0:02:26]} 34. Bf2 {[%emt 0:04:07]} Kf7 {[%emt 0:00:43]} 35. Bxg3 {[%emt 0:00:08]} hxg3 {[%emt 0:00:13]} 36. Nxe7 {[%emt 0:00:04]} Nxe7 {[%emt 0:02:36]} 37. Rd3 {[%emt 0:00:29]} Rf4+ {[%emt 0:02:17]} 38. Kg1 {[%emt 0:00:24]} Nf5 {[%emt 0:02:59]} 0-1

[Event "URU-ch Women 2021"]
[Site "Montevideo"]
[Date "2021.03.06"]
[Round "5.2"]
[White "Roepke, Sofia"]
[Black "Sosa, Ines"]
[Result "1-0"]
[ECO "C54"]
[WhiteElo "1589"]
[BlackElo "955"]
[Annotator "NA RC"]
[PlyCount "105"]
[EventDate "2021.03.04"]
[EventType "tourn"]
[EventCountry "URU"]
[SourceTitle "playchess.com"]
[Source "ChessBase"]
[SourceQuality "1"]
[TimeControl "3600+30"]

1. e4 {[%emt 0:00:03]} e5 {[%emt 0:00:20]} 2. Nf3 {[%emt 0:00:03]} Nc6 {[%emt 0:00:07]} 3. Bc4 {[%emt 0:00:02]} Nf6 {[%emt 0:00:21]} 4. d3 {[%emt 0:00:08]} Bc5 {[%emt 0:01:43]} 5. c3 {[%emt 0:00:06]} d6 {[%emt 0:01:11]} 6. Bb3 {[%emt 0:00:04]} O-O {[%emt 0:01:42]} 7. O-O {[%emt 0:01:13]} h6 {[%emt 0:01:37]} 8. h3 {[%emt 0:00:23]} a6 {[%emt 0:00:49]} 9. Re1 {[%emt 0:00:26]} b5 {[%emt 0:02:45]} 10. Nbd2 {[%emt 0:02:12]} Bb7 {[%emt 0:04:16]} 11. Nf1 {[%emt 0:00:37]} Re8 {[%emt 0:04:01]} 12. Ng3 {[%emt 0:02:52]} Ne7 {[%emt 0:07:25]} 13. Nh4 {[%emt 0:02:57]} d5 {[%emt 0:04:53]} 14. Qf3 {[%emt 0:03:52]} c6 {[%emt 0:04:12]} 15. Bxh6 {[%emt 0:02:56]} Ng6 {[%emt 0:03:07]} 16. Bg5 {[%emt 0:01:49]} Be7 {[%emt 0:03:13]} 17. Nhf5 {[%emt 0:04:05]} Nh7 {[%emt 0:03:52]} 18. Bxe7 {[%emt 0:01:04]} Nxe7 {[%emt 0:00:21]} 19. Qg4 {[%emt 0:08:12]} Nxf5 {[%emt 0:03:10]} 20. Nxf5 {[%emt 0:03:10]} Qf6 {[%emt 0:01:34]} 21. Rad1 {[%emt 0:07:37]} Rad8 {[%emt 0:01:45]} 22. Ng3 {[%emt 0:00:28]} Bc8 {[%emt 0:01:48]} 23. Qh5 {[%emt 0:04:22]} Qg6 {[%emt 0:01:51]} 24. Qxg6 {[%emt 0:00:12]} fxg6 {[%emt 0:00:08]} 25. exd5 {[%emt 0:00:37]} cxd5 {[%emt 0:00:47]} 26. d4 {[%emt 0:00:29]} exd4 {[%emt 0:01:29]} 27. Rxe8+ {[%emt 0:00:31]} Rxe8 {[%emt 0:00:24]} 28. Bxd5+ {[%emt 0:00:10]} Kf8 {[%emt 0:00:39]} 29. cxd4 {[%emt 0:03:16]} Nf6 {[%emt 0:00:41]} 30. Bc6 {[%emt 0:01:38]} Rd8 {[%emt 0:01:01]} 31. d5 {[%emt 0:01:41]} Ne8 {[%emt 0:01:54]} 32. Ne4 {[%emt 0:01:11]} Bf5 {[%emt 0:01:14]} 33. f3 {[%emt 0:00:27]} Ke7 {[%emt 0:01:30]} 34. Bxe8 {[%emt 0:03:18]} Kxe8 {[%emt 0:00:38]} 35. d6 {[%emt 0:01:43]} a5 {[%emt 0:00:55]} 36. Nc5 {[%emt 0:03:09]} a4 {[%emt 0:01:29]} 37. Kf2 {[%emt 0:05:08]} Kf7 {[%emt 0:01:54]} 38. d7 {[%emt 0:00:57]} Ke7 {[%emt 0:00:42]} 39. Ke3 {[%emt 0:01:55]} Bxd7 {[%emt 0:01:00]} 40. Rxd7+ {[%emt 0:00:04]} Rxd7 {[%emt 0:00:14]} 41. Nxd7 {[%emt 0:00:01]} Kxd7 {[%emt 0:00:07]} 42. Kf4 {[%emt 0:02:03]} Kc6 {[%emt 0:00:33]} 43. Kg5 {[%emt 0:00:07]} Kc5 {[%emt 0:00:12]} 44. Kxg6 {[%emt 0:00:05]} Kc4 {[%emt 0:00:24]} 45. Kxg7 {[%emt 0:00:06]} b4 {[%emt 0:00:28]} 46. h4 {[%emt 0:00:45]} b3 {[%emt 0:00:09]} 47. axb3+ {[%emt 0:01:59]} Kxb3 {[%emt 0:00:08]} 48. h5 {[%emt 0:00:01]} Kxb2 {[%emt 0:00:10]} 49. h6 {[%emt 0:00:01]} a3 {[%emt 0:00:25]} 50. h7 {[%emt 0:00:01]} a2 {[%emt 0:00:08]} 51. h8=Q {[%emt 0:00:03]} Kc3 {[%emt 0:01:34]} 52. Kf7+ {[%emt 0:00:06]} Kc4 {[%emt 0:00:25]} 53. Qa1 {[%emt 0:00:03]} 1-0